bitfinex-derivatives/quotes_BNBF0:USTF0_20260114
["timestamp","ask_amount","ask_price","bid_price","bid_amount"]
[1768371518815,0.75912369,939.49,938.32,1.064319]
[1768371519019,0.75912369,939.48,938.32,1.064319]
[1768371519220,0.75912369,939.47,938.32,1.064319]
[1768371519520,0.75912369,939.46,938.32,1.064319]
[1768371519716,0.75912369,939.45,938.32,1.064319]
[1768371519916,0.75912369,939.44,938.32,1.064319]
[1768371520218,0.75912369,939.43,938.32,1.064319]
[1768371520420,0.75912369,939.42,938.32,1.064319]
[1768371520619,0.75912369,939.41,938.32,1.064319]
[1768371520822,0.75912369,939.4,938.32,1.064319]
[1768371521021,0.75912369,939.39,938.32,1.064319]
[1768371521321,0.75912369,939.38,938.32,1.064319]
[1768371521520,0.75912369,939.37,938.32,1.064319]
[1768371521721,0.75912369,939.36,938.32,1.064319]
[1768371521918,0.75912369,939.35,938.32,1.064319]
[1768371522118,0.75912369,939.34,938.33,1.064319]
[1768371522322,0.75912369,939.33,938.33,1.064319]
[1768371522522,0.75912369,939.32,938.33,1.064319]
[1768371522818,0.75912369,939.31,938.33,1.064319]
[1768371523019,0.75912369,939.3,938.33,1.064319]
[1768371523218,0.75912369,939.29,938.33,1.064319]
[1768371523422,0.75912369,939.28,938.33,1.064319]
[1768371523624,0.75912369,939.27,938.33,1.064319]
[1768371523819,0.75912369,939.26,938.33,1.064319]
[1768371524024,0.75912369,939.25,938.33,1.064319]
[1768371524322,0.75912369,939.24,938.33,1.064319]
[1768371524523,0.75912369,939.23,938.33,1.064319]
[1768371524723,0.75912369,939.22,938.33,1.064319]
[1768371525023,0.75912369,939.21,938.33,1.064319]
[1768371525320,0.75912369,939.2,938.33,1.064319]
[1768371525521,0.18523891,940.14,938.33,1.064319]
[1768371525721,0.75930315,940.13,938.33,1.064319]
[1768371525924,0.75930315,940.12,938.33,1.064319]
[1768371526126,0.19812771,940.14,938.33,1.064319]
[1768371526425,0.18523891,940.14,938.33,1.064319]
[1768371526725,0.75864458,940.13,938.33,1.064319]
[1768371526920,0.75864458,940.12,938.33,1.064319]
[1768371527120,0.75864458,940.11,938.33,1.064319]
[1768371527323,0.75864458,940.1,938.33,1.064319]
[1768371527521,0.75864458,940.09,938.33,1.064319]
[1768371527721,0.75864458,940.08,938.33,1.064319]
[1768371528021,0.75864458,940.07,938.33,1.064319]
[1768371528322,0.75864458,940.06,938.33,1.064319]
[1768371528526,0.75864458,940.05,938.33,1.064319]
[1768371528722,0.75864458,940.04,938.33,1.064319]
[1768371528923,0.75864458,940.03,938.33,1.064319]
[1768371529126,0.75864458,940.02,938.33,1.064319]
[1768371529324,0.75864458,940.01,938.33,1.064319]
[1768371529524,0.75864458,940.0,938.33,1.064319]
[1768371529824,0.75864458,939.99,938.33,1.064319]
[1768371530027,0.75864458,939.98,938.33,1.064319]
[1768371530224,0.75864458,939.97,938.33,1.064319]
[1768371530427,0.75864458,939.96,938.33,1.064319]
[1768371530629,0.75864458,939.95,938.33,1.064319]
[1768371530926,0.75864458,939.94,938.33,1.064319]
[1768371531125,0.75864458,939.93,938.33,1.064319]
[1768371531327,0.75864458,939.92,938.33,1.064319]
[1768371531625,0.75864458,939.91,938.33,1.064319]
[1768371531831,0.75864458,939.9,938.33,1.064319]
[1768371532026,0.18523891,940.14,938.28,1.064319]
[1768371532027,0.75864458,939.89,938.28,1.064319]
[1768371532231,0.75864458,939.88,938.19,0.1852823]
[1768371532426,0.75864458,939.87,938.19,0.1852823]
[1768371532626,0.75864458,939.86,938.14,1.064319]
[1768371532830,0.75864458,939.85,938.09,1.064319]
[1768371533030,0.75864458,939.84,938.09,1.064319]
[1768371533226,0.75864458,939.83,938.07,1.064319]
[1768371533431,0.75864458,939.82,938.07,1.064319]
[1768371533630,0.75864458,939.81,938.07,1.064319]
[1768371533834,0.75864458,939.8,938.07,1.064319]
[1768371534030,0.75864458,939.79,938.07,1.064319]
[1768371534234,0.75864458,939.78,938.06,1.064319]
[1768371534432,0.75864458,939.77,938.03,1.064319]
[1768371534631,0.75864458,939.76,938.03,1.064319]
[1768371534833,0.75864458,939.75,938.03,1.064319]
[1768371535134,0.18523891,940.14,938.02,1.064319]
[1768371535135,0.75864458,939.74,938.02,1.064319]
[1768371535337,0.75864458,939.73,938.01,1.064319]
[1768371535538,0.75864458,939.72,938.01,1.064319]
[1768371535739,0.75864458,939.71,938.02,1.064319]
[1768371536039,0.75864458,939.7,938.02,1.064319]
[1768371536239,0.75864458,939.69,938.01,1.064319]
[1768371536433,0.75864458,939.68,938.01,1.064319]
[1768371536639,0.75864458,939.67,938.01,1.064319]
[1768371536838,0.75864458,939.66,938.01,1.064319]
[1768371537037,0.75864458,939.65,938.01,1.064319]
[1768371537336,0.75864458,939.64,938.0,1.064319]
[1768371537535,0.75864458,939.63,938.0,1.064319]
[1768371537736,0.75864458,939.62,938.0,1.064319]
[1768371537940,0.18523891,940.14,938.0,1.064319]
[1768371537941,0.75864458,939.61,938.0,1.064319]
[1768371538137,0.75864458,939.6,937.99,1.064319]
[1768371538338,0.75864458,939.59,937.99,1.064319]
[1768371538541,0.18523891,940.14,937.99,1.064319]
[1768371538542,0.75864458,939.58,937.99,1.064319]
[1768371538742,0.75864458,939.57,937.99,1.064319]
[1768371538939,0.75864458,939.56,937.99,1.064319]
[1768371539239,0.75864458,939.55,937.98,1.064319]
[1768371539443,0.75864458,939.54,937.98,1.064319]
[1768371539644,0.75864458,939.53,937.98,1.064319]
[1768371539840,0.75864458,939.52,937.98,1.064319]
[1768371540041,0.75864458,939.51,937.98,1.064319]
[1768371540242,0.75864458,939.5,937.98,1.064319]
[1768371540441,0.75864458,939.49,937.98,1.064319]
[1768371540748,0.75864458,939.48,937.98,1.064319]
[1768371540946,0.75864458,939.47,937.98,1.064319]
[1768371541143,0.75864458,939.46,937.98,1.064319]
[1768371541446,0.75864458,939.45,937.98,1.064319]
[1768371541747,0.75864458,939.44,937.98,1.064319]
[1768371541947,0.75864458,939.43,937.98,1.064319]
[1768371542148,0.75864458,939.42,937.98,1.064319]
[1768371542345,0.75864458,939.41,937.97,1.064319]
[1768371542549,0.75864458,939.4,937.97,1.064319]
[1768371542743,0.75864458,939.39,937.97,1.064319]
[1768371542944,0.75864458,939.38,937.97,1.064319]
[1768371543249,0.75864458,939.37,937.97,1.064319]
[1768371543448,0.75864458,939.36,937.97,1.064319]
[1768371543649,0.75864458,939.35,937.97,1.064319]
[1768371543849,0.75864458,939.34,937.97,1.064319]
[1768371544146,0.75864458,939.33,937.96,1.24962005]
[1768371544349,0.75864458,939.32,937.96,1.24962005]
[1768371544547,0.75864458,939.31,937.96,1.24962005]
[1768371544747,0.75864458,939.3,937.96,1.24962005]
[1768371544947,0.75864458,939.29,937.96,1.24962005]
[1768371545151,0.75864458,939.28,937.96,1.24962005]
[1768371545345,0.75864458,939.27,937.96,1.24962005]
[1768371545549,0.75864458,939.26,937.96,1.24962005]
[1768371545746,0.75864458,939.25,937.96,1.24962005]
[1768371546046,0.75864458,939.24,937.96,1.24962005]
[1768371546246,0.75864458,939.23,937.96,0.18530105]
[1768371546450,0.18523891,940.14,937.96,0.18530105]
[1768371546451,0.75864458,939.22,937.96,0.18530105]
[1768371546752,0.75864458,939.21,937.96,0.18530105]
[1768371546950,0.75864458,939.2,937.96,0.18530105]
[1768371547249,0.75864458,939.19,937.96,0.18530105]
[1768371547447,0.75864458,939.18,937.96,0.18530105]
[1768371547647,0.75864458,939.17,937.96,0.18530105]
[1768371547849,0.75864458,939.16,937.96,0.18530105]
[1768371548045,0.75580233,939.15,937.96,0.18530105]
[1768371548252,0.75580233,939.14,937.96,0.18530105]
[1768371548449,0.75580233,939.13,938.08,1.064319]
[1768371548652,0.75580233,939.12,938.1,1.064319]
[1768371548849,0.75580233,939.11,938.12,1.064319]
[1768371549048,0.75580233,939.1,938.12,1.064319]
[1768371549252,0.75580233,939.09,938.15,1.064319]
[1768371549449,0.75580233,939.08,938.15,1.064319]
[1768371549648,0.75580233,939.07,938.15,1.064319]
[1768371549853,0.75580233,939.06,938.15,1.064319]
[1768371550055,0.75580233,939.05,938.15,1.064319]
[1768371550250,0.75580233,939.04,938.15,1.064319]
[1768371550450,0.75580233,939.03,938.15,1.064319]
[1768371550651,0.75580233,939.02,938.15,1.064319]
[1768371550954,0.75580233,939.01,938.15,1.064319]
[1768371551155,0.75580233,939.0,938.15,1.064319]
[1768371551355,0.75580233,938.99,938.15,1.064319]
[1768371551655,0.75580233,938.98,938.16,1.064319]
[1768371551955,0.75580233,938.97,938.16,1.064319]
[1768371552255,0.75580233,938.96,938.16,1.064319]
[1768371552449,0.75580233,938.95,938.16,1.064319]
[1768371552651,0.75580233,938.94,938.16,1.064319]
[1768371552855,0.75580233,938.93,938.16,1.064319]
[1768371553152,0.75580233,938.92,938.16,1.064319]
[1768371553455,0.75580233,938.91,938.16,1.064319]
[1768371553655,0.75580233,938.9,938.16,1.064319]
[1768371553852,0.75580233,938.89,938.16,1.064319]
[1768371554150,0.75580233,938.88,938.17,1.064319]
[1768371554355,0.75580233,938.87,938.17,1.064319]
[1768371554554,0.75580233,938.86,938.17,1.064319]
[1768371554752,0.75580233,938.85,938.17,1.064319]
[1768371554952,0.75580233,938.84,938.17,1.064319]
[1768371555151,0.75580233,938.83,938.17,1.064319]
[1768371555353,0.75580233,938.82,938.17,1.064319]
[1768371555554,0.75580233,938.81,938.17,1.064319]
[1768371555857,0.75580233,938.8,938.18,1.064319]
[1768371556053,0.75580233,938.79,938.18,1.064319]
[1768371556357,0.75580233,938.78,938.18,1.064319]
[1768371556556,0.75580233,938.77,938.18,1.064319]
[1768371556759,0.75580233,938.76,938.18,1.064319]
[1768371556955,0.75580233,938.75,938.18,1.064319]
[1768371557158,0.75580233,938.74,938.18,1.064319]
[1768371557355,0.75580233,938.73,938.19,1.064319]
[1768371557556,0.75580233,938.72,938.2,1.064319]
[1768371557756,0.75580233,938.71,938.2,1.064319]
[1768371558059,0.75580233,938.7,938.2,1.064319]
[1768371558355,0.75580233,938.69,938.22,1.064319]
[1768371558556,0.75580233,938.68,938.22,1.064319]
[1768371558860,0.75580233,938.67,938.22,1.064319]
[1768371559060,0.75580233,938.66,938.22,1.064319]
[1768371559359,0.75580233,938.65,938.23,1.064319]
[1768371559560,0.75580233,938.64,938.23,1.064319]
[1768371559758,0.75580233,938.63,938.23,1.064319]
[1768371559961,0.75580233,938.62,938.23,1.064319]
[1768371560163,0.75580233,938.61,938.23,1.064319]
[1768371560360,0.75580233,938.6,938.23,1.064319]
[1768371560562,0.75580233,938.59,938.23,1.064319]
[1768371560763,0.75580233,938.58,938.23,1.064319]
[1768371560960,0.75580233,938.57,938.23,1.064319]
[1768371561263,0.7605674,938.56,938.24,1.064319]
[1768371561461,0.01234835,939.51,938.24,1.064319]
[1768371561664,0.76064247,939.5,938.24,1.064319]
[1768371561866,0.76064247,939.49,938.24,1.064319]
[1768371562064,0.76064247,939.48,938.24,1.064319]
[1768371562264,0.76064247,939.47,938.24,1.064319]
[1768371562462,0.76064247,939.46,938.24,1.064319]
[1768371562662,0.76064247,939.45,938.24,1.064319]
[1768371562862,0.76064247,939.44,938.24,1.064319]
[1768371563162,0.18523891,940.14,938.23,1.064319]
[1768371563364,0.76063131,940.13,938.23,1.064319]
[1768371563560,0.76063131,940.12,938.23,1.064319]
[1768371563861,0.76063131,940.11,938.23,1.064319]
[1768371564066,0.76063131,940.1,938.23,1.064319]
[1768371564260,0.76063131,940.09,938.23,1.064319]
[1768371564560,0.76063131,940.08,938.23,1.064319]
[1768371564762,0.76063131,940.07,938.23,1.064319]
[1768371564962,0.76063131,940.06,938.23,1.064319]
[1768371565161,0.76063131,940.05,938.23,1.064319]
[1768371565363,0.76063131,940.04,938.23,1.064319]
[1768371565565,0.76063131,940.03,938.23,1.064319]
[1768371565761,0.76063131,940.02,938.23,1.064319]
[1768371565965,0.76063131,940.01,938.23,1.064319]
[1768371566164,0.76063131,940.0,938.23,1.064319]
[1768371566367,0.76063131,939.99,938.23,1.064319]
[1768371566566,0.76063131,939.98,938.23,1.064319]
[1768371566764,0.76063131,939.97,938.23,1.064319]
[1768371566964,0.76063131,939.96,938.23,1.064319]
[1768371567167,0.76063131,939.95,938.23,1.064319]
[1768371567365,0.76063131,939.94,938.23,1.064319]
[1768371567665,0.76063131,939.93,938.23,1.064319]
[1768371567865,0.76063131,939.92,938.23,1.064319]
[1768371568062,0.76063131,939.91,938.23,1.064319]
[1768371568263,0.76063131,939.9,938.23,1.064319]
[1768371568467,0.76063131,939.89,938.23,1.064319]
[1768371568668,0.76063131,939.88,938.23,1.064319]
[1768371568865,0.76063131,939.87,938.23,1.064319]
[1768371569066,0.76063131,939.86,938.23,1.064319]
[1768371569266,0.76063131,939.85,938.23,1.064319]
[1768371569467,0.76063131,939.84,938.23,1.064319]
[1768371569672,0.76063131,939.83,938.23,1.064319]
[1768371569972,0.76063131,939.82,938.23,1.064319]
[1768371570172,0.76063131,939.81,938.23,1.064319]
[1768371570472,0.76063131,939.8,938.23,1.064319]
[1768371570672,0.76063131,939.79,938.23,1.064319]
[1768371570871,0.76063131,939.78,938.23,1.064319]
[1768371571073,0.76063131,939.77,938.23,1.064319]
[1768371571274,0.76063131,939.76,938.23,1.064319]
[1768371571474,0.76063131,939.75,938.23,1.064319]
[1768371571670,0.76063131,939.74,938.23,1.064319]
[1768371571869,0.76063131,939.73,938.23,1.064319]
[1768371572070,0.76063131,939.72,938.23,1.064319]
[1768371572274,0.76063131,939.71,938.23,1.064319]
[1768371572470,0.76063131,939.7,938.23,1.064319]
[1768371572773,0.76063131,939.69,938.23,1.064319]
[1768371572974,0.76063131,939.68,938.23,1.064319]
[1768371573174,0.76063131,939.67,938.23,1.064319]
[1768371573375,0.76063131,939.66,938.23,1.064319]
[1768371573576,0.76063131,939.65,938.23,1.064319]
[1768371573776,0.76063131,939.64,938.23,1.064319]
[1768371573976,0.76063131,939.63,938.23,1.064319]
[1768371574177,0.18523891,940.14,938.23,1.064319]
[1768371574178,0.76063131,939.62,938.23,1.064319]
[1768371574473,0.18523891,940.14,938.23,1.064319]
[1768371574474,0.76063131,939.61,938.23,1.064319]
[1768371574677,0.76063131,939.6,938.23,1.064319]
[1768371574877,0.76063131,939.59,938.23,1.064319]
[1768371575076,0.76063131,939.58,938.23,1.064319]
[1768371575278,0.76063131,939.57,938.23,1.064319]
[1768371575476,0.76063131,939.56,938.23,1.064319]
[1768371575679,0.76063131,939.55,938.23,1.064319]
[1768371575879,0.76063131,939.54,938.23,1.064319]
[1768371576175,0.76063131,939.53,938.23,1.064319]
[1768371576376,0.76063131,939.52,938.23,1.064319]
[1768371576579,0.76063131,939.51,938.23,1.064319]
[1768371576775,0.76063131,939.5,938.23,1.064319]
[1768371576978,0.76063131,939.49,938.23,1.064319]
[1768371577181,0.76063131,939.48,938.23,1.064319]
[1768371577377,0.76063131,939.47,938.23,1.064319]
[1768371577578,0.76063131,939.46,938.23,1.064319]
[1768371577779,0.76063131,939.45,938.23,1.064319]
[1768371577984,0.76063131,939.44,938.23,1.064319]
[1768371578178,0.76063131,939.43,938.23,1.064319]
[1768371578379,0.76063131,939.42,938.24,1.064319]
[1768371578582,0.76063131,939.41,938.24,1.064319]
[1768371578781,0.76063131,939.4,938.24,1.064319]
[1768371579087,0.76063131,939.39,938.23,1.064319]
[1768371579382,0.76063131,939.38,938.16,1.064319]
[1768371579586,0.76063131,939.37,938.16,1.064319]
[1768371579882,0.76063131,939.36,938.07,1.064319]
[1768371580181,0.76063131,939.35,938.06,1.064319]
[1768371580382,0.76063131,939.34,938.06,1.064319]
[1768371580586,0.76063131,939.33,938.06,1.064319]
[1768371580786,0.76063131,939.32,938.04,1.064319]
[1768371581082,0.76063131,939.31,937.99,1.064319]
[1768371581283,0.76063131,939.3,937.79,1.064319]
[1768371581482,0.76063131,939.29,937.78,1.064319]
[1768371581682,0.76063131,939.28,937.78,1.064319]
[1768371581886,0.18523891,940.14,937.78,1.064319]
[1768371581887,0.76063131,939.27,937.78,1.064319]
[1768371582186,0.76063131,939.26,937.76,1.064319]
[1768371582382,0.76063131,939.25,937.76,1.064319]
[1768371582587,0.76063131,939.24,937.76,1.064319]
[1768371582787,0.76063131,939.23,937.76,1.064319]
[1768371583086,0.76063131,939.22,937.76,1.064319]
[1768371583287,0.76063131,939.21,937.74,1.064319]
[1768371583487,0.76063131,939.2,937.74,1.064319]
[1768371583685,0.76063131,939.19,937.74,1.064319]
[1768371583884,0.76063131,939.18,937.74,1.064319]
[1768371584085,0.76063131,939.17,937.74,1.064319]
[1768371584384,0.76063131,939.17,937.71,0.18535879]
[1768371584385,0.76063131,939.16,937.73,1.064319]
[1768371584587,0.76063131,939.15,937.73,1.064319]
[1768371584888,0.76063131,939.14,937.73,1.064319]
[1768371585084,0.76063131,939.13,937.73,1.064319]
[1768371585288,0.76063131,939.12,937.72,1.064319]
[1768371585584,0.76063131,939.11,937.72,1.064319]
[1768371585786,0.76063131,939.1,937.72,1.064319]
[1768371585987,0.76063131,939.09,937.72,1.064319]
[1768371586186,0.76063131,939.08,937.71,1.24967779]
[1768371586488,0.76063131,939.07,937.71,1.24967779]
[1768371586788,0.76063131,939.06,937.71,1.24967779]
[1768371587086,0.76063131,939.05,937.71,1.24967779]
[1768371587288,0.76063131,939.04,937.71,0.18535879]
[1768371587589,0.76063131,939.03,937.71,0.18535879]
[1768371587888,0.76063131,939.02,937.71,0.18535879]
[1768371588088,0.76063131,939.01,937.71,0.18535879]
[1768371588388,0.76063131,939.0,937.71,0.18535879]
[1768371588588,0.76063131,938.99,937.71,0.18535879]
[1768371588791,0.76063131,938.98,937.71,0.18535879]
[1768371589084,0.76063131,938.97,937.71,0.18535879]
[1768371589384,0.76063131,938.96,937.71,0.18535879]
[1768371589585,0.76063131,938.95,937.71,0.18535879]
[1768371589786,0.76063131,938.94,937.71,0.18535879]
[1768371589985,0.76063131,938.93,937.71,0.18535879]
[1768371590284,0.76063131,938.92,937.71,0.18535879]
[1768371590484,0.76063131,938.91,937.71,0.18535879]
[1768371590684,0.76063131,938.9,937.71,0.18535879]
[1768371590889,0.76063131,938.89,937.71,0.18535879]
[1768371591087,0.76063131,938.88,937.71,0.18535879]
[1768371591286,0.76063131,938.87,937.71,0.18535879]
[1768371591586,0.18538545,939.14,937.71,0.18535879]
[1768371591587,0.76063131,938.86,937.71,0.18535879]
[1768371591785,0.76063131,938.85,937.71,0.18535879]
[1768371591986,0.76063131,938.84,937.71,0.18535879]
[1768371592187,0.76063131,938.83,937.71,0.18535879]
[1768371592388,0.76063131,938.82,937.71,0.18535879]
[1768371592585,0.76063131,938.81,937.71,0.18535879]
[1768371592787,0.76063131,938.8,937.71,0.18535879]
[1768371593086,0.76063131,938.79,937.71,0.18535879]
[1768371593288,0.76063131,938.78,937.71,0.18535879]
[1768371593487,0.76063131,938.77,937.71,0.18535879]
[1768371593690,0.76063131,938.76,937.71,0.18535879]
[1768371593891,0.76063131,938.75,937.71,0.18535879]
[1768371594088,0.76063131,938.74,937.71,0.18535879]
[1768371594389,0.76063131,938.73,937.71,0.18535879]
[1768371594588,0.76063131,938.72,937.71,0.18535879]
[1768371594790,0.76063131,938.71,937.71,0.18535879]
[1768371594990,0.76063131,938.7,937.71,0.18535879]
[1768371595190,0.76063131,938.69,937.71,0.18535879]
[1768371595391,0.76063131,938.68,937.71,0.18535879]
[1768371595593,0.76063131,938.67,937.71,0.18535879]
[1768371595790,0.76063131,938.66,937.71,0.18535879]
[1768371595992,0.76063131,938.65,937.71,0.18535879]
[1768371596293,0.76063131,938.64,937.71,0.18535879]
[1768371596491,0.76063131,938.63,937.71,0.18535879]
[1768371596690,0.76063131,938.62,937.71,0.18535879]
[1768371596891,0.76063131,938.61,937.71,0.18535879]
[1768371597089,0.76063131,938.6,937.71,0.18535879]
[1768371597396,0.76063131,938.59,937.71,0.18535879]
[1768371597693,0.76063131,938.58,937.71,0.18535879]
[1768371597891,0.76063131,938.57,937.71,0.18535879]
[1768371598094,0.76063131,938.56,937.71,0.18535879]
[1768371598394,0.76063131,938.55,937.71,0.18535879]
[1768371598594,0.76063131,938.54,937.71,0.18535879]
[1768371598891,0.76063131,938.53,937.71,0.18535879]
[1768371599192,0.76063131,938.52,937.71,0.18535879]
[1768371599394,0.76063131,938.51,937.71,0.18535879]
[1768371599595,0.76063131,938.5,937.71,0.18535879]
[1768371599793,0.76063131,938.49,937.71,0.18535879]
[1768371599991,0.76063131,938.48,937.71,0.18535879]
[1768371600191,0.7555793,938.47,937.71,0.18535879]
[1768371600392,0.7555793,938.46,937.71,0.18535879]
[1768371600695,0.7555793,938.45,937.71,0.18535879]
[1768371600892,0.7555793,938.44,937.71,0.18535879]
[1768371601195,0.7555793,938.43,937.71,0.18535879]
[1768371601398,0.7555793,938.42,937.71,0.18535879]
[1768371601591,0.7555793,938.41,937.71,0.18535879]
[1768371601792,0.7555793,938.4,937.71,0.18535879]
[1768371601993,0.7555793,938.39,937.71,0.18535879]
[1768371602195,0.7555793,938.38,937.71,0.18535879]
[1768371602392,0.7555793,938.37,937.71,0.18535879]
[1768371602596,0.7555793,938.36,937.71,0.18535879]
[1768371602797,0.7555793,938.35,937.71,0.18535879]
[1768371602998,0.7555793,938.34,937.71,0.18535879]
[1768371603194,0.7555793,938.33,937.71,0.18535879]
[1768371603398,0.7555793,938.32,937.71,0.18535879]
[1768371603595,0.7555793,938.31,937.71,0.18535879]
[1768371603799,0.7555793,938.3,937.71,0.18535879]
[1768371604000,0.7555793,938.29,937.3,1.064319]
[1768371604201,0.7555793,938.28,937.48,0.18545806]
[1768371604400,0.7555793,938.27,937.48,0.18545806]
[1768371604597,0.7555793,938.26,937.48,0.18545806]
[1768371604800,0.7555793,938.25,937.48,0.18545806]
[1768371605100,0.7555793,938.24,937.48,0.18545806]
[1768371605297,0.7555793,938.23,937.48,0.18545806]
[1768371605598,0.7555793,938.22,937.48,0.18545806]
[1768371605900,0.7555793,938.21,937.48,0.18545806]
[1768371606196,0.7555793,938.2,937.48,0.18545806]
[1768371606396,0.7555793,938.19,937.48,0.18545806]
[1768371606596,0.7555793,938.18,937.48,0.18545806]
[1768371606896,0.01297717,939.15,937.48,0.18545806]
[1768371606897,0.7555793,938.17,937.48,0.18545806]
[1768371607195,0.7555793,938.16,937.48,0.18545806]
[1768371607397,0.7555793,938.15,937.48,0.18545806]
[1768371607599,0.7555793,938.14,937.48,0.18545806]
[1768371607798,0.7555793,938.13,937.48,0.18545806]
[1768371608096,0.7555793,938.12,937.48,0.18545806]
[1768371608400,0.7555793,938.11,937.48,0.18545806]
[1768371608600,0.7555793,938.1,937.48,0.18545806]
[1768371608801,0.7555793,938.09,937.48,0.18545806]
[1768371609110,0.7555793,938.08,937.48,0.18545806]
[1768371609299,0.7555793,938.07,937.48,0.18545806]
[1768371609497,0.7555793,938.06,937.48,0.18545806]
[1768371609701,0.7555793,938.05,937.48,0.18545806]
[1768371609901,0.7555793,938.04,937.48,0.18545806]
[1768371610101,0.7555793,938.03,937.48,0.18545806]
[1768371610299,0.7555793,938.02,937.48,0.18545806]
[1768371610601,0.7555793,938.01,937.48,0.18545806]
[1768371610802,0.7555793,938.0,937.48,0.18545806]
[1768371611101,0.7555793,937.99,937.48,0.18545806]
[1768371611298,0.7555793,937.98,937.48,0.18545806]
[1768371611498,0.7555793,937.97,937.48,0.18545806]
[1768371611697,0.7555793,937.96,937.48,0.18545806]
[1768371611898,0.7555793,937.95,937.48,0.18545806]
[1768371612202,0.7555793,937.94,937.48,0.18545806]
[1768371612402,0.01180257,938.9,937.48,0.18545806]
[1768371612598,0.75372184,938.89,937.48,0.18545806]
[1768371612902,0.75372184,938.88,937.48,0.18545806]
[1768371613103,0.75372184,938.87,937.48,0.18545806]
[1768371613303,0.75372184,938.86,937.48,0.18545806]
[1768371613498,0.75372184,938.85,937.48,0.18545806]
[1768371613701,0.18539779,939.26,937.48,0.18545806]
[1768371613702,0.75372184,938.84,937.48,0.18545806]
[1768371613900,0.75372184,938.83,937.48,0.18545806]
[1768371614204,0.75372184,938.82,937.48,0.18545806]
[1768371614500,0.75372184,938.81,937.48,0.18545806]
[1768371614702,0.75372184,938.8,937.48,0.18545806]
[1768371614904,0.75372184,938.79,937.48,0.18545806]
[1768371615104,0.75372184,938.78,937.48,0.18545806]
[1768371615304,0.75372184,938.77,937.48,0.18545806]
[1768371615500,0.75372184,938.76,937.48,0.18545806]
[1768371615704,0.75372184,938.75,937.48,0.18545806]
[1768371615905,0.75372184,938.74,937.48,0.18545806]
[1768371616100,0.75372184,938.73,937.48,0.18545806]
[1768371616400,0.75372184,938.72,937.48,0.18545806]
[1768371616601,0.75372184,938.71,937.48,0.18545806]
[1768371616801,0.75372184,938.7,937.48,0.18545806]
[1768371617003,0.75372184,938.69,937.48,0.18545806]
[1768371617306,0.75372184,938.68,937.48,0.18545806]
[1768371617606,0.75372184,938.67,937.48,0.18545806]
[1768371617806,0.75372184,938.66,937.48,0.18545806]
[1768371618102,0.75372184,938.65,937.48,0.18545806]
[1768371618305,0.75372184,938.64,937.48,0.18545806]
[1768371618606,0.75372184,938.63,937.48,0.18545806]
[1768371618807,0.75372184,938.62,937.48,0.18545806]
[1768371619006,0.75372184,938.61,937.48,0.18545806]
[1768371619307,0.75372184,938.6,937.48,0.18545806]
[1768371619508,0.75372184,938.59,937.48,0.18545806]
[1768371619804,0.75372184,938.58,937.48,0.18545806]
[1768371620105,0.75372184,938.57,937.48,0.18545806]
[1768371620305,0.75372184,938.56,937.48,0.18545806]
[1768371620509,0.75372184,938.55,937.48,0.18545806]
[1768371620707,0.75372184,938.54,937.48,0.18545806]
[1768371620906,0.75372184,938.53,937.48,0.18545806]
[1768371621107,0.75372184,938.52,937.48,0.18545806]
[1768371621306,0.75372184,938.51,937.48,0.18545806]
[1768371621510,0.75372184,938.5,937.48,0.18545806]
[1768371621706,0.75372184,938.49,937.48,0.18545806]
[1768371622010,0.75372184,938.48,937.48,0.18545806]
[1768371622310,0.75372184,938.47,937.48,0.18545806]
[1768371622511,0.75372184,938.46,937.48,0.18545806]
[1768371622708,0.75372184,938.45,937.48,0.18545806]
[1768371622905,0.75372184,938.44,937.48,0.18545806]
[1768371623107,0.75372184,938.43,937.48,0.18545806]
[1768371623311,0.75372184,938.42,937.48,0.18545806]
[1768371623511,0.75372184,938.41,937.48,0.18545806]
[1768371623711,0.75372184,938.4,937.48,0.18545806]
[1768371623913,0.75372184,938.39,937.48,0.18545806]
[1768371624211,0.75372184,938.38,937.48,0.18545806]
[1768371624411,0.75372184,938.37,937.48,0.18545806]
[1768371624708,0.18539779,939.26,937.48,0.18545806]
[1768371624709,0.75372184,938.36,937.48,0.18545806]
[1768371625010,0.75372184,938.35,937.48,0.18545806]
[1768371625212,0.75372184,938.34,937.48,0.18545806]
[1768371625413,0.75372184,938.33,937.48,0.18545806]
[1768371625710,0.75372184,938.32,937.48,0.18545806]
[1768371625912,0.75372184,938.31,937.48,0.18545806]
[1768371626114,0.75372184,938.3,937.51,1.064319]
[1768371626312,0.75372184,938.29,937.51,1.064319]
[1768371626514,0.75372184,938.28,937.51,1.064319]
[1768371626709,0.75372184,938.27,937.51,1.064319]
[1768371626915,0.75372184,938.26,937.51,1.064319]